bitfinex-derivatives/quotes_BTCF0:USTF0_20241025
["timestamp","ask_amount","ask_price","bid_price","bid_amount"]
[1729866255204,0.2098251,68685.0,68677.0,0.3608]
[1729866255398,0.072843,68678.0,68677.0,0.3608]
[1729866255600,0.2098251,68685.0,68678.0,0.21945114]
[1729866255796,0.2098251,68685.0,68677.0,0.24592332]
[1729866255991,0.072843,68678.0,68675.0,0.072845]
[1729866256199,0.122829,68691.0,68667.0,0.4743]
[1729866256200,0.2598251,68691.0,68674.0,0.2098251]
[1729866256402,0.072838,68683.0,68681.0,0.07284]
[1729866256795,0.072835,68686.0,68682.0,0.21734105]
[1729866256999,0.2098251,68683.0,68663.0,0.2098251]
[1729866257209,0.072845,68676.0,68675.0,0.072845]
[1729866257395,0.07284,68681.0,68680.0,0.072841]
[1729866257592,0.072834,68687.0,68677.0,0.2098251]
[1729866257797,0.072834,68687.0,68683.0,0.3608]
[1729866257997,0.05,68691.0,68681.0,0.3608]
[1729866258199,0.072838,68683.0,68681.0,0.43364]
[1729866258400,0.072838,68683.0,68682.0,0.21850954]
[1729866258605,0.072838,68683.0,68682.0,0.29134854]
[1729866261296,0.2098251,68687.0,68686.0,0.072835]
[1729866261503,0.05,68691.0,68690.0,0.07283]
[1729866261703,0.122829,68691.0,68690.0,0.43363]
[1729866261907,0.1069,68694.0,68690.0,0.65146452]
[1729866262108,0.1069,68694.0,68682.0,0.5720251]
[1729866262109,0.2098251,68691.0,68686.0,0.072834]
[1729866262507,0.2098251,68691.0,68687.0,0.21974602]
[1729866263102,0.072832,68688.0,68687.0,0.21974602]
[1729866263498,0.072832,68688.0,68686.0,0.29129533]
[1729866263711,0.072832,68688.0,68687.0,0.21846033]
[1729866264011,0.2098251,68691.0,68686.0,0.21746265]
[1729866264211,0.072834,68687.0,68686.0,0.21746265]
[1729866264508,0.072832,68688.0,68687.0,0.21746265]
[1729866264708,0.2826571,68688.0,68673.0,0.4686]
[1729866265009,0.072847,68674.0,68673.0,0.46010262]
[1729866265409,0.286334,68687.0,68673.0,0.46010262]
[1729866265410,0.072843,68678.0,68673.0,0.60599292]
[1729866265612,0.072843,68678.0,68677.0,0.072844]
[1729866265803,0.072838,68684.0,68677.0,0.2098251]
[1729866266002,0.03870696,68683.0,68682.0,0.072839]
[1729866266404,0.072838,68684.0,68682.0,0.072839]
[1729866266804,0.3121251,68687.0,68679.0,0.3608]
[1729866267012,0.072841,68680.0,68679.0,0.3608]
[1729866267410,0.072838,68683.0,68682.0,0.072837]
[1729866267608,0.2098251,68692.0,68685.0,0.072836]
[1729866267813,0.072834,68687.0,68685.0,0.072836]
[1729866268006,0.072835,68686.0,68685.0,0.072836]
[1729866268702,0.1069,68694.0,68679.0,0.3608]
[1729866268703,0.072837,68684.0,68679.0,0.3608]
[1729866269111,0.072837,68684.0,68680.0,0.218254]
[1729866269915,0.072837,68684.0,68683.0,0.072838]
[1729866270218,0.072837,68684.0,68683.0,0.2897817]
[1729866270414,0.072837,68684.0,68683.0,0.2169437]
[1729866270810,0.2098251,68687.0,68680.0,0.2169437]
[1729866270811,0.072841,68681.0,68680.0,0.2169437]
[1729866271009,0.072841,68681.0,68679.0,0.46078952]
[1729866271214,0.072841,68681.0,68679.0,0.45930952]
[1729866271413,0.072841,68680.0,68679.0,0.45930952]
[1729866271719,0.072841,68680.0,68679.0,0.67759488]
[1729866272116,0.072841,68680.0,68679.0,0.24395288]
[1729866272322,0.21280772,68680.0,68679.0,0.24395288]
[1729866272526,0.21280772,68680.0,68672.0,0.36298414]
[1729866272527,0.072848,68673.0,68672.0,0.00218414]
[1729866273210,0.1048,68673.0,68665.0,0.02581374]
[1729866273410,0.072861,68661.0,68660.0,0.072861]
[1729866273616,0.13996672,68661.0,68646.0,0.26274528]
[1729866273809,0.13996672,68654.0,68653.0,0.07287]
[1729866274010,0.072868,68655.0,68653.0,0.21985458]
[1729866274315,0.072855,68667.0,68666.0,0.072854]
[1729866274921,0.072851,68671.0,68667.0,0.072854]
[1729866275116,0.072852,68670.0,68668.0,0.072853]
[1729866275814,0.072853,68669.0,68668.0,0.072853]
[1729866276414,0.177649,68673.0,68666.0,0.02652218]
[1729866276621,0.1048,68673.0,68672.0,0.072849]
[1729866277114,0.2099672,68678.0,68674.0,0.072847]
[1729866277115,0.072845,68677.0,68674.0,0.072847]
[1729866277310,0.072841,68680.0,68669.0,0.2099672]
[1729866277514,0.072841,68680.0,68676.0,0.072844]
[1729866277709,0.072841,68680.0,68677.0,0.072843]
[1729866277915,0.2828112,68678.0,68676.0,0.072845]
[1729866278116,0.072844,68677.0,68676.0,0.072845]
[1729866279021,0.00218486,68682.0,68681.0,0.07284]
[1729866280823,0.00218486,68682.0,68672.0,0.3608]
[1729866280824,0.072845,68677.0,68673.0,0.072848]
[1729866281010,0.2099672,68675.0,68673.0,0.072848]
[1729866281214,0.2099672,68675.0,68673.0,0.29085795]
[1729866281415,0.072846,68676.0,68673.0,0.65165795]
[1729866281623,0.072846,68676.0,68673.0,0.21800995]
[1729866281925,0.00218486,68682.0,68677.0,0.072843]
[1729866282235,0.00218486,68682.0,68679.0,0.072842]
[1729866282236,0.072841,68680.0,68679.0,0.072842]
[1729866282425,0.00218486,68682.0,68679.0,0.072842]
[1729866282426,0.00218486,68682.0,68681.0,0.07284]
[1729866283522,0.07502386,68682.0,68681.0,0.07284]
[1729866283731,0.00218486,68682.0,68681.0,0.07284]
[1729866285127,0.072837,68684.0,68681.0,0.07284]
[1729866285632,0.072837,68684.0,68683.0,0.072838]
[1729866286118,0.2099672,68687.0,68681.0,0.5014]
[1729866286319,0.072839,68682.0,68681.0,0.5]
[1729866289234,0.072839,68682.0,68681.0,0.5266387]
[1729866289827,0.2099672,68687.0,68681.0,0.5266387]
[1729866290030,0.1263,68691.0,68681.0,0.8874387]
[1729866290239,0.072831,68690.0,68688.0,0.072832]
[1729866290423,0.11149762,68689.0,68688.0,0.072832]
[1729866290728,0.072831,68689.0,68688.0,0.28993532]
[1729866292125,0.11137353,68689.0,68688.0,0.21710332]
[1729866292332,0.072831,68689.0,68688.0,0.21710332]
[1729866292530,0.072835,68686.0,68685.0,0.21895768]
[1729866292729,0.072836,68685.0,68683.0,0.29179468]
[1729866292928,0.072836,68685.0,68683.0,0.072837]
[1729866293333,0.072836,68685.0,68684.0,0.2175208]
[1729866293537,0.072836,68685.0,68684.0,0.2903578]
[1729866293729,0.2099672,68687.0,68686.0,0.072835]
[1729866294134,0.2099672,68687.0,68686.0,0.21860689]
[1729866294437,0.2099672,68687.0,68682.0,0.29144489]
[1729866294638,0.072837,68684.0,68682.0,0.29144489]
[1729866294832,0.072837,68684.0,68682.0,0.072838]
[1729866295030,0.072837,68684.0,68683.0,0.21860689]
[1729866295238,0.2099672,68687.0,68684.0,0.072836]
[1729866295537,0.072835,68686.0,68685.0,0.21833249]
[1729866295938,0.1263,68691.0,68685.0,0.21833249]
[1729866296130,0.19913,68691.0,68688.0,0.3608]
[1729866296332,0.19913,68691.0,68688.0,0.433631]
[1729866296632,0.19913,68691.0,68685.0,0.13992791]
[1729866296633,0.072831,68690.0,68689.0,0.2194185]
[1729866297036,0.1263,68691.0,68687.0,0.072833]
[1729866297037,0.072832,68688.0,68687.0,0.072833]
[1729866297440,0.072832,68688.0,68687.0,0.2900494]
[1729866299441,0.072831,68689.0,68688.0,0.072831]
[1729866299639,0.072831,68689.0,68687.0,0.7172164]
[1729866299640,0.072832,68689.0,68687.0,0.7172164]
[1729866299954,0.1263,68691.0,68687.0,0.7172164]
[1729866299955,0.07283,68690.0,68689.0,0.21725754]
[1729866300135,0.07283,68690.0,68687.0,0.574233]
[1729866300440,0.1263,68691.0,68689.0,0.21692718]
[1729866300628,0.07283,68690.0,68689.0,0.21692718]
[1729866300832,0.07283,68690.0,68688.0,0.072832]
[1729866301243,0.07283,68690.0,68689.0,0.2186002]
[1729866301551,0.072832,68688.0,68687.0,0.50144]
[1729866301843,0.21275991,68688.0,68687.0,0.7186002]
[1729866302336,0.21275991,68688.0,68687.0,0.7914342]
[1729866302546,0.072832,68688.0,68687.0,0.7914342]
[1729866302744,0.072832,68688.0,68687.0,0.7186002]
[1729866302943,0.3608,68695.0,68687.0,1.0794002]
[1729866303140,0.3608,68695.0,68694.0,0.072826]
[1729866303647,0.3608,68695.0,68694.0,0.29235296]
[1729866304236,0.433625,68695.0,68694.0,0.21952696]
[1729866304433,0.433625,68695.0,68687.0,0.5014]
[1729866304635,0.072832,68688.0,68687.0,0.5]
[1729866305039,0.072832,68688.0,68687.0,0.71863403]
[1729866305743,0.072832,68688.0,68687.0,0.5]
[1729866306643,0.1225,68690.0,68688.0,0.072832]
[1729866306944,0.3608,68695.0,68689.0,0.21275891]
[1729866307134,0.3608,68695.0,68689.0,0.13992791]
[1729866307340,0.26242791,68699.0,68689.0,0.13992791]
[1729866307540,0.072826,68694.0,68693.0,0.072827]
[1729866307739,0.1225,68699.0,68693.0,0.50072791]
[1729866307740,0.072825,68696.0,68693.0,0.50072791]
[1729866307942,0.072825,68696.0,68694.0,0.21739961]
[1729866308146,0.195321,68699.0,68693.0,0.35732752]
[1729866308448,0.072824,68696.0,68693.0,0.21275491]
[1729866308651,0.072824,68696.0,68694.0,0.21797164]
[1729866308856,0.1225,68699.0,68694.0,0.21797164]
[1729866308857,0.1225,68699.0,68696.0,0.072824]
[1729866309159,0.1225,68699.0,68694.0,0.35789955]
[1729866309455,0.1225,68699.0,68696.0,0.3608]
[1729866310044,0.072823,68697.0,68696.0,0.3608]
[1729866310450,0.1225,68699.0,68696.0,0.433623]
[1729866310647,0.072823,68697.0,68696.0,0.3608]
[1729866312452,0.072823,68698.0,68696.0,0.433624]
[1729866312754,0.072823,68697.0,68696.0,0.3608]
[1729866313166,0.072822,68698.0,68696.0,0.433624]
[1729866313458,0.072824,68696.0,68694.0,0.50072791]
[1729866313957,0.1183,68701.0,68694.0,0.50072791]
[1729866314254,0.03897573,68700.0,68694.0,0.50072791]
[1729866314447,0.072823,68697.0,68694.0,0.57355291]
[1729866314852,0.191119,68701.0,68697.0,0.072822]
[1729866315154,0.191119,68701.0,68694.0,0.50072791]
[1729866315155,0.072819,68701.0,68700.0,0.3608]
[1729866315357,0.1223,68710.0,68700.0,0.50072791]
[1729866315666,0.1229,68716.0,68704.0,0.64065582]
[1729866315955,0.1229,68716.0,68713.0,0.13992791]
[1729866316262,0.072805,68714.0,68713.0,0.13992791]
[1729866316756,0.1229,68716.0,68710.0,0.13992791]
[1729866316956,0.072812,68707.0,68706.0,0.13992791]
[1729866317160,0.072812,68707.0,68706.0,0.3582366]
[1729866317350,0.072812,68707.0,68706.0,0.13992791]
[1729866317548,0.072812,68707.0,68706.0,0.35935829]
[1729866318861,0.3608,68714.0,68706.0,0.72015829]
[1729866319157,0.072806,68713.0,68712.0,0.13992791]
[1729866320160,0.072806,68713.0,68712.0,0.57353491]
[1729866320362,0.072804,68715.0,68713.0,0.072806]
[1729866320658,0.072806,68713.0,68712.0,0.50072791]
[1729866321264,0.072806,68713.0,68712.0,0.57353491]
[1729866322763,0.072806,68713.0,68712.0,0.59954368]
[1729866323259,0.072806,68713.0,68712.0,0.52673668]
[1729866323465,0.21273391,68713.0,68712.0,0.52600877]
[1729866323764,0.072806,68713.0,68712.0,0.52600877]
[1729866324656,0.3608,68721.0,68712.0,1.24533972]
[1729866324857,0.072799,68720.0,68719.0,0.072799]
[1729866325058,0.072799,68720.0,68719.0,0.21272691]
[1729866326861,0.249,68729.0,68724.0,0.072793]
[1729866326862,0.072794,68725.0,68724.0,0.072793]
[1729866327855,0.072791,68727.0,68726.0,0.072792]
[1729866328056,0.072791,68727.0,68726.0,0.21271991]
[1729866328459,0.072791,68727.0,68726.0,0.21271291]
[1729866329064,0.1281,68729.0,68728.0,0.072783]
[1729866329454,0.200882,68729.0,68728.0,0.072783]
[1729866329763,0.072784,68727.0,68726.0,0.13992791]
[1729866330071,0.07279,68721.0,68720.0,0.072791]
[1729866330455,0.072792,68719.0,68718.0,0.3608]
[1729866330662,0.3608,68731.0,68718.0,0.50072791]
[1729866330957,2.0,68752.0,68718.0,0.50072791]
[1729866330958,0.329359,68751.0,68747.0,0.072763]
[1729866331159,0.329359,68751.0,68747.0,0.433563]
[1729866331160,0.07276,68750.0,68747.0,0.433563]
[1729866331354,0.072762,68748.0,68747.0,0.433563]
[1729866331960,0.2566,68751.0,68747.0,0.433563]
[1729866332368,0.072762,68748.0,68747.0,0.3608]
[1729866333258,0.1306,68750.0,68747.0,0.433563]
[1729866333463,0.072762,68748.0,68747.0,0.3608]
[1729866335064,0.50072791,68748.0,68742.0,0.3608]
[1729866335269,0.072774,68736.0,68734.0,0.433576]
[1729866335459,0.072774,68736.0,68734.0,0.3608]
[1729866335655,0.072775,68735.0,68734.0,0.38723462]
[1729866335859,0.072775,68735.0,68734.0,0.52716253]
[1729866336063,0.072775,68735.0,68734.0,0.3608]
[1729866336265,0.13992791,68736.0,68727.0,0.3608]
[1729866336459,0.442276,68734.0,68727.0,0.3608]
[1729866336764,0.21271091,68728.0,68727.0,0.3608]
[1729866337162,0.21271091,68728.0,68723.0,0.0261619]
[1729866337163,0.072787,68724.0,68723.0,0.0261619]
[1729866337469,0.072787,68725.0,68720.0,0.13992791]
[1729866337771,0.072783,68728.0,68724.0,0.43183569]
[1729866337962,0.072783,68728.0,68727.0,0.13992791]
[1729866338159,0.50072791,68733.0,68724.0,0.21271491]
[1729866338468,0.3608,68739.0,68724.0,0.21271491]
[1729866338469,0.072785,68726.0,68725.0,0.21904258]
[1729866338966,0.2097779,68733.0,68720.0,0.4598892]
[1729866339157,0.07279,68721.0,68720.0,0.3870982]
[1729866339761,0.07279,68721.0,68720.0,0.3608]
[1729866341076,0.07279,68721.0,68712.0,0.5014]
[1729866341375,0.072799,68713.0,68712.0,0.5]
[1729866342867,0.2615,68725.0,68712.0,0.5]
[1729866343071,0.072789,68722.0,68721.0,0.2825679]
[1729866343369,0.206186,68725.0,68724.0,0.072787]
[1729866343571,0.1334,68725.0,68724.0,0.072787]
[1729866344671,0.072771,68739.0,68725.0,0.072785]
[1729866344967,0.072772,68738.0,68737.0,0.072773]
[1729866345358,0.072772,68738.0,68737.0,0.29197691]
[1729866346967,0.5705779,68746.0,68740.0,0.07277]
[1729866347168,0.072769,68741.0,68740.0,0.07277]
[1729866347677,0.072771,68739.0,68736.0,0.072774]
[1729866347974,0.072772,68738.0,68737.0,0.072773]
[1729866348382,0.072772,68738.0,68737.0,0.28994494]
[1729866349371,0.072772,68738.0,68737.0,0.21717194]
[1729866349877,0.5705779,68746.0,68736.0,0.21840027]
[1729866350074,0.5713779,68746.0,68735.0,0.38906453]
[1729866350268,0.2097779,68736.0,68723.0,0.15172]
[1729866350469,0.2097779,68736.0,68730.0,0.072781]
[1729866350669,0.07278,68731.0,68730.0,0.072781]
[1729866351074,0.07278,68731.0,68730.0,0.29135836]
[1729866352875,0.07278,68731.0,68730.0,0.65215836]
[1729866353072,0.00218294,68742.0,68741.0,0.072769]
[1729866353272,0.00218294,68742.0,68741.0,0.433569]
[1729866353777,0.07495094,68742.0,68741.0,0.65240447]
[1729866353976,0.07495094,68742.0,68741.0,0.57963547]
[1729866355872,0.07495094,68742.0,68741.0,0.65240447]
[1729866356677,2.0,68752.0,68741.0,1.61255952]
[1729866356876,2.073518,68752.0,68751.0,0.433558]
[1729866357082,2.0,68752.0,68751.0,0.433558]
[1729866357877,2.072757,68752.0,68751.0,0.433558]
[1729866358879,2.0,68752.0,68751.0,0.433558]
[1729866359283,2.072757,68752.0,68751.0,0.433558]
[1729866360084,2.0,68752.0,68751.0,0.433558]
[1729866360273,2.0,68752.0,68751.0,0.71750838]
[1729866360587,2.0,68752.0,68751.0,0.79026638]
[1729866360788,1.65828244,68752.0,68751.0,1.07609409]
[1729866361084,1.65828244,68752.0,68751.0,1.51245409]
[1729866361495,1.65828244,68752.0,68751.0,1.39825864]
[1729866361679,1.12106436,68752.0,68751.0,1.54259635]
[1729866361877,1.12106436,68752.0,68751.0,1.40280864]
[1729866362380,1.12106436,68752.0,68751.0,1.54259635]
[1729866362581,1.12106436,68752.0,68751.0,1.6218171]
[1729866362790,1.12106436,68752.0,68751.0,1.4757771]
[1729866363080,1.12106436,68752.0,68751.0,1.40280864]
[1729866363475,1.12106436,68752.0,68751.0,1.25676864]
[1729866363674,1.12106436,68752.0,68751.0,1.76049461]
[1729866363881,0.78113144,68752.0,68751.0,1.76049461]
[1729866364081,0.78113144,68752.0,68751.0,1.6207069]
[1729866364280,0.54276775,68752.0,68751.0,2.36049461]
[1729866364481,0.16389065,68752.0,68751.0,2.36049461]
[1729866364687,0.01600989,68752.0,68751.0,2.36049461]
[1729866365079,0.1222,68781.0,68751.0,2.69529661]
[1729866365283,0.201628,68780.0,68779.0,0.13978771]
[1729866365490,0.005,68787.0,68779.0,0.27957542]
[1729866365786,0.07772,68787.0,68786.0,0.3608]
[1729866366183,0.07772,68787.0,68786.0,0.21929975]
[1729866366580,0.072721,68786.0,68785.0,0.21794255]
[1729866366783,0.21250871,68786.0,68785.0,0.21794255]
[1729866367087,0.21250871,68786.0,68779.0,0.21794255]
[1729866367088,0.072728,68780.0,68779.0,0.21794255]
[1729866367283,0.072736,68772.0,68771.0,0.38635672]
[1729866367482,0.21252371,68772.0,68771.0,0.38635672]
[1729866367683,0.21252371,68772.0,68771.0,0.60368693]
[1729866367988,0.21252371,68772.0,68771.0,0.24288693]
[1729866370592,0.21252371,68772.0,68765.0,0.02828756]
[1729866370593,0.072743,68766.0,68765.0,0.02828756]
[1729866370794,0.1299,68771.0,68765.0,0.50276838]
[1729866370995,0.13978771,68775.0,68774.0,0.072734]
[1729866371186,0.072724,68784.0,68774.0,0.50058771]
[1729866371382,0.072724,68784.0,68783.0,0.3608]
[1729866371794,0.072724,68784.0,68783.0,0.57949029]
[1729866371992,0.21251171,68784.0,68783.0,0.57949029]
[1729866372188,0.21251171,68784.0,68783.0,0.21869029]
[1729866372189,0.35229942,68784.0,68783.0,0.21869029]
[1729866372398,0.072733,68775.0,68774.0,0.3608]
[1729866372593,0.21252071,68775.0,68774.0,0.3608]
[1729866372799,0.21252071,68775.0,68774.0,0.57852808]
[1729866373801,0.072739,68769.0,68768.0,0.3608]
[1729866374007,0.21252671,68769.0,68768.0,0.3608]
[1729866374207,0.21252671,68769.0,68768.0,0.5775711]
[1729866374398,0.21252671,68769.0,68768.0,0.3608]
[1729866374596,0.072743,68766.0,68764.0,0.02635178]
[1729866374800,0.072743,68766.0,68761.0,0.3608]
[1729866375002,0.072743,68766.0,68765.0,0.21914935]
[1729866375400,0.072743,68766.0,68765.0,0.29189335]
[1729866375601,0.13978771,68769.0,68765.0,0.21914935]
[1729866375801,0.3608,68786.0,68770.0,0.072738]
[1729866375802,0.072736,68773.0,68770.0,0.072738]
[1729866376104,0.072736,68773.0,68772.0,0.072736]
[1729866376512,0.13978771,68776.0,68771.0,0.072737]
[1729866376715,0.3819,68782.0,68766.0,0.1251]
[1729866376716,0.072733,68775.0,68774.0,0.3608]
[1729866377511,0.072743,68766.0,68765.0,0.00218067]
[1729866377714,0.21253071,68766.0,68765.0,0.00218067]
[1729866378012,0.21253071,68766.0,68765.0,0.21986418]
[1729866379011,0.18527371,68766.0,68765.0,0.21986418]
[1729866379218,0.18527371,68766.0,68765.0,0.00218067]
[1729866379415,0.072743,68766.0,68765.0,0.00218067]
[1729866379711,0.07274,68768.0,68765.0,0.22134745]
[1729866379915,0.072743,68766.0,68765.0,0.22134745]
[1729866380803,0.072743,68766.0,68765.0,0.29409145]
[1729866381007,0.072743,68766.0,68765.0,0.22134745]
[1729866381308,0.21253071,68766.0,68765.0,0.22134745]
[1729866383816,0.073484,68784.0,68781.0,0.072727]
[1729866384118,0.13978771,68782.0,68779.0,0.3608]
[1729866384317,0.13978771,68782.0,68781.0,0.072727]
[1729866384519,0.21251371,68782.0,68781.0,0.072727]
[1729866384812,0.1316,68783.0,68782.0,0.072726]
[1729866385019,0.1316,68783.0,68779.0,0.3608]
[1729866385215,0.1316,68783.0,68777.0,0.09917791]
[1729866385519,0.072732,68776.0,68775.0,0.3608]
[1729866385718,0.204325,68783.0,68781.0,0.78748029]
[1729866385914,0.13978771,68782.0,68781.0,0.78748029]
[1729866386111,0.21251371,68782.0,68781.0,0.78748029]
[1729866388019,0.21251371,68782.0,68781.0,0.17368029]
[1729866388020,0.508886,68782.0,68781.0,0.17368029]
[1729866388218,0.508886,68782.0,68781.0,0.09270029]
[1729866388412,0.072743,68766.0,68765.0,0.00218067]
[1729866388617,0.57333071,68766.0,68765.0,0.00218067]
[1729866388916,1.00961071,68766.0,68765.0,0.00218067]
[1729866389215,1.07665542,68766.0,68752.0,0.3608]
[1729866389520,1.07665542,68766.0,68748.0,0.0014]
[1729866389521,0.072761,68749.0,68748.0,0.0014]
[1729866389713,0.21254871,68749.0,68738.0,0.3608]
[1729866389912,0.07277,68741.0,68740.0,0.07277]
[1729866390220,0.07277,68741.0,68740.0,0.21836005]
[1729866390426,0.21255771,68741.0,68740.0,0.21836005]
[1729866390609,0.21255771,68741.0,68731.0,0.3622]
[1729866390610,0.13978771,68741.0,68731.0,0.3608]
[1729866390810,0.072775,68736.0,68734.0,0.072776]
[1729866391016,0.13978771,68738.0,68734.0,0.072776]
[1729866391329,0.072775,68735.0,68734.0,0.072776]
[1729866391529,0.072771,68739.0,68737.0,0.072773]
[1729866391714,0.072762,68748.0,68747.0,0.072762]
[1729866392025,0.07275,68759.0,68758.0,0.07275]
[1729866392221,0.3608,68762.0,68761.0,0.072748]
[1729866392423,0.072749,68760.0,68759.0,0.21863422]
[1729866392612,0.072752,68757.0,68756.0,0.072752]
[1729866392814,0.072755,68755.0,68752.0,0.3608]
[1729866393017,0.072755,68755.0,68754.0,0.072755]
[1729866393217,0.072755,68754.0,68753.0,0.21863422]
[1729866393425,0.13978771,68755.0,68747.0,0.1327]
[1729866393726,0.072761,68749.0,68748.0,0.21744723]
[1729866394020,0.072761,68749.0,68738.0,0.3608]
[1729866394021,0.072769,68742.0,68741.0,0.29021523]
[1729866394326,0.072769,68742.0,68741.0,0.072769]
[1729866394713,0.21255371,68746.0,68745.0,0.072765]
[1729866394916,0.072766,68746.0,68745.0,0.072765]
[1729866395116,0.00076,68750.0,68749.0,0.072761]
[1729866395311,0.07276,68750.0,68749.0,0.07276]
[1729866395523,0.07276,68750.0,68749.0,0.29102131]
[1729866396525,0.07276,68750.0,68749.0,0.21826131]
[1729866396913,0.072761,68749.0,68746.0,0.28956372]
[1729866397114,0.072763,68747.0,68746.0,0.28956372]
[1729866397415,0.072763,68747.0,68746.0,0.072763]
[1729866397610,0.072763,68747.0,68746.0,0.28950927]
[1729866398015,0.072763,68747.0,68746.0,0.21674627]
[1729866398521,0.072767,68744.0,68743.0,0.21674627]
[1729866398711,0.072767,68744.0,68743.0,0.072767]
[1729866398916,0.072767,68744.0,68743.0,0.29108183]
[1729866399219,0.072767,68744.0,68743.0,0.21831483]
[1729866399420,0.433567,68744.0,68743.0,0.21831483]
[1729866399622,0.433567,68744.0,68733.0,0.3608]
[1729866399623,0.072773,68737.0,68736.0,0.21679077]
[1729866399823,0.13978771,68737.0,68733.0,0.3608]
[1729866400026,0.072776,68734.0,68733.0,0.3608]
[1729866400325,0.072776,68734.0,68733.0,0.57759077]
[1729866401525,0.072776,68734.0,68733.0,0.21679077]
[1729866401933,0.072784,68727.0,68726.0,0.00218244]
[1729866402129,0.21257171,68727.0,68726.0,0.00218244]
[1729866402316,0.21257171,68727.0,68726.0,0.22020988]
[1729866403028,0.072784,68727.0,68726.0,0.22020988]
[1729866403226,0.07278,68731.0,68726.0,0.58100988]
[1729866403427,0.07278,68731.0,68730.0,0.13978771]
[1729866403622,0.07278,68731.0,68730.0,0.21256871]
[1729866403818,0.072774,68737.0,68734.0,0.072776]
[1729866404126,0.50134771,68741.0,68735.0,0.21782568]
[1729866404329,0.50058771,68741.0,68735.0,0.21782568]
[1729866404628,0.072774,68736.0,68735.0,0.21782568]
[1729866405022,0.072774,68736.0,68735.0,0.072775]
[1729866405220,0.36156,68741.0,68739.0,0.072771]
[1729866405221,0.43357,68741.0,68739.0,0.072771]
[1729866405436,0.072774,68737.0,68736.0,0.072774]
[1729866405730,0.07495196,68742.0,68741.0,0.072769]
[1729866405934,0.072772,68738.0,68737.0,0.21954426]
[1729866406125,0.072779,68732.0,68726.0,0.00358244]
[1729866406325,0.21257171,68727.0,68726.0,0.00218244]
[1729866406529,0.072784,68727.0,68726.0,0.00218244]
[1729866406723,0.072784,68727.0,68726.0,0.29251115]
[1729866407631,0.3608,68731.0,68726.0,0.21972615]
[1729866407928,0.13978771,68735.0,68726.0,0.21972615]
[1729866407929,0.072776,68735.0,68727.0,0.50058771]
[1729866408125,0.072776,68735.0,68734.0,0.072776]
[1729866408524,0.072776,68735.0,68734.0,0.204576]
[1729866409023,0.3608,68746.0,68734.0,0.35106363]
[1729866409229,0.13978771,68753.0,68741.0,0.072769]
[1729866409536,0.072766,68744.0,68741.0,0.29044759]
[1729866410130,0.13978771,68749.0,68741.0,0.29044759]
[1729866410527,0.072762,68748.0,68743.0,0.072767]
[1729866410733,0.3608,68747.0,68743.0,0.072767]
[1729866410923,0.072765,68745.0,68744.0,0.21784326]
[1729866411119,0.21255271,68745.0,68744.0,0.21784326]
[1729866411729,0.21255271,68745.0,68734.0,0.51991387]
[1729866411730,0.072775,68735.0,68734.0,0.00148]
[1729866411929,0.072776,68734.0,68727.0,0.072784]
[1729866412229,0.13978771,68732.0,68728.0,0.21804993]
[1729866412530,0.072782,68729.0,68728.0,0.29083093]
[1729866412924,0.072782,68729.0,68726.0,0.00218244]
[1729866412925,0.3608,68735.0,68727.0,0.35714817]
[1729866413128,0.3608,68735.0,68726.0,0.00218244]
[1729866413129,0.13978771,68728.0,68726.0,0.00218244]
[1729866413332,0.072784,68727.0,68726.0,0.00218244]
[1729866413749,0.072784,68727.0,68720.0,0.3608]
[1729866413932,0.21257771,68721.0,68720.0,0.3608]
[1729866414331,0.07279,68721.0,68720.0,0.3608]
[1729866415933,0.072791,68721.0,68718.0,0.072793]
[1729866416133,0.072792,68719.0,68718.0,0.072793]
[1729866416334,0.072792,68719.0,68718.0,0.2902234]
[1729866416638,0.072792,68719.0,68718.0,0.072793]
[1729866416835,0.072792,68719.0,68718.0,0.29017712]
[1729866417834,0.072792,68719.0,68718.0,0.21738412]
[1729866418333,0.072797,68715.0,68714.0,0.21918533]
[1729866418545,0.072793,68719.0,68713.0,0.38680693]
[1729866418730,0.433582,68729.0,68718.0,0.20980888]
[1729866418731,0.36156,68729.0,68718.0,0.20980888]
[1729866419042,0.072787,68724.0,68723.0,0.072788]
[1729866419427,0.072787,68724.0,68723.0,0.29183205]
[1729866419828,0.072787,68724.0,68723.0,0.21904405]
[1729866420141,0.072792,68719.0,68716.0,0.072795]
[1729866420339,0.20980888,68721.0,68714.0,0.22103649]
[1729866420540,0.072805,68707.0,68694.0,0.072819]
[1729866420731,0.072805,68707.0,68690.0,0.6205]
[1729866420732,0.57060888,68707.0,68690.0,0.6205]
[1729866420934,0.57060888,68707.0,68690.0,0.3608]
[1729866420935,0.072822,68691.0,68690.0,0.3608]
[1729866421242,0.072822,68691.0,68690.0,0.57777933]
[1729866421539,0.072822,68691.0,68690.0,0.60401489]
[1729866421930,0.072822,68691.0,68690.0,0.21697933]
[1729866422130,0.072822,68691.0,68690.0,0.28980233]
[1729866422330,0.072822,68691.0,68690.0,0.072823]
[1729866422533,0.072822,68691.0,68690.0,0.29041808]
[1729866422946,0.072822,68691.0,68690.0,0.21759508]
[1729866423243,0.072822,68691.0,68686.0,0.20980888]
[1729866423244,0.072822,68691.0,68687.0,0.29042108]
[1729866423546,0.3608,68715.0,68690.0,0.57789364]
[1729866423736,0.20980888,68714.0,68699.0,0.20980888]
[1729866423941,0.072814,68699.0,68698.0,0.072814]
[1729866424146,0.072814,68699.0,68696.0,0.3608]
[1729866424440,0.072812,68700.0,68699.0,0.21903897]
[1729866424642,0.072815,68698.0,68697.0,0.21748]
[1729866424841,0.64342088,68700.0,68699.0,0.21748]
[1729866425144,0.072815,68698.0,68697.0,0.21748]
[1729866425354,0.57060888,68700.0,68699.0,0.21748]
[1729866425531,0.64342088,68700.0,68699.0,0.21748]
[1729866425841,0.072815,68698.0,68692.0,0.21773322]
[1729866426143,0.072825,68688.0,68687.0,0.3608]
[1729866426445,0.072825,68688.0,68687.0,0.57985159]
[1729866427045,0.072825,68688.0,68687.0,0.21905159]
[1729866427233,0.28263388,68688.0,68687.0,0.21905159]
[1729866427540,0.07283,68683.0,68682.0,0.21905159]